[Event "Live Chess"]
[Site "Chess.com"]
[Date "2024.06.01"]
[Round "-"]
[White "WeakOldFinished"]
[Black "SergiiA"]
[Result "1-0"]
[WhiteElo "1613"]
[BlackElo "1536"]
[TimeControl "300"]
[EndTime "10:43:07 PDT"]
[Termination "WeakOldFinished won by resignation"]

1. d4 {[%clk 0:04:54.6]} 1... d5 {[%clk 0:04:58.8]} 2. e4 {[%clk 0:04:52.6]}
2... c5 {[%clk 0:04:55.9]} 3. dxc5 {[%clk 0:04:50.8]} 3... Qa5+ {[%clk
0:04:46.2]} 4. Nc3 {[%clk 0:04:47.8]} 4... dxe4 {[%clk 0:04:44.1]} 5. Be3 {[%clk
0:04:43.2]} 5... Nf6 {[%clk 0:04:36.1]} 6. Bc4 {[%clk 0:04:37.9]} 6... e6 {[%clk
0:04:33.9]} 7. Ne2 {[%clk 0:04:36.4]} 7... Bxc5 {[%clk 0:04:32.4]} 8. Bb5+
{[%clk 0:04:33.1]} 8... Bd7 {[%clk 0:04:29.6]} 9. Bxc5 {[%clk 0:04:30.7]} 9...
Bxb5 {[%clk 0:04:28.6]} 10. Qd6 {[%clk 0:04:29.2]} 10... Qd8 {[%clk 0:04:21]}
11. Nxb5 {[%clk 0:04:27.3]} 11... Qxd6 {[%clk 0:04:04.1]} 12. Nxd6+ {[%clk
0:04:23.5]} 12... Kd7 {[%clk 0:03:59]} 13. O-O-O {[%clk 0:04:22]} 13... Kc6
{[%clk 0:03:58.2]} 14. Ba3 {[%clk 0:04:19.4]} 14... Na6 {[%clk 0:03:56.1]} 15.
Nxf7 {[%clk 0:04:11.9]} 15... Rhe8 {[%clk 0:03:50.6]} 16. Ne5+ {[%clk
0:04:09.6]} 16... Kc7 {[%clk 0:03:45.8]} 17. g4 {[%clk 0:04:08.2]} 17... Nd5
{[%clk 0:03:39]} 18. c4 {[%clk 0:04:05.3]} 18... Nb6 {[%clk 0:03:34.5]} 19. b3
{[%clk 0:04:00.4]} 19... Rad8 {[%clk 0:03:25.8]} 20. Rxd8 {[%clk 0:03:57.3]}
20... Rxd8 {[%clk 0:03:25.1]} 21. Rd1 {[%clk 0:03:57]} 21... Rxd1+ {[%clk
0:03:24]} 22. Kxd1 {[%clk 0:03:55.9]} 22... Nd7 {[%clk 0:03:21.9]} 23. Nxd7
{[%clk 0:03:54.1]} 23... Kxd7 {[%clk 0:03:20.5]} 24. Ng3 {[%clk 0:03:53.2]}
24... Nc7 {[%clk 0:03:16.7]} 25. Nxe4 {[%clk 0:03:51.8]} 25... b5 {[%clk
0:03:16.2]} 26. Kd2 {[%clk 0:03:47.9]} 26... bxc4 {[%clk 0:03:14.7]} 27. bxc4
{[%clk 0:03:47.6]} 27... e5 {[%clk 0:03:10.6]} 28. Ke3 {[%clk 0:03:43.4]} 28...
Kc6 {[%clk 0:03:09]} 29. f4 {[%clk 0:03:37.6]} 29... exf4+ {[%clk 0:03:05]} 30.
Kxf4 {[%clk 0:03:36.6]} 30... Ne6+ {[%clk 0:03:04.7]} 31. Ke5 {[%clk 0:03:35.5]}
31... Nc7 {[%clk 0:03:01.5]} 32. Ng5 {[%clk 0:03:30.2]} 32... h6 {[%clk
0:02:58.9]} 33. Ne6 {[%clk 0:03:29.1]} 33... Nxe6 {[%clk 0:02:55.8]} 34. Kxe6
{[%clk 0:03:27.9]} 34... g5 {[%clk 0:02:54.9]} 35. Kf5 {[%clk 0:03:25.6]} 35...
Kb6 {[%clk 0:02:52.4]} 36. Kg6 {[%clk 0:03:23.7]} 36... Ka5 {[%clk 0:02:51.7]}
37. Kxh6 {[%clk 0:03:22.8]} 37... Ka4 {[%clk 0:02:51.4]} 38. c5 {[%clk
0:03:21.9]} 38... Kxa3 {[%clk 0:02:50.3]} 39. c6 {[%clk 0:03:21]} 39... a5
{[%clk 0:02:49.9]} 40. c7 {[%clk 0:03:20.1]} 40... Kxa2 {[%clk 0:02:49.8]} 41.
c8=Q {[%clk 0:03:18.6]} 41... a4 {[%clk 0:02:49.7]} 42. Kxg5 {[%clk 0:03:15.3]}
42... a3 {[%clk 0:02:49.6]} 43. Qc2+ {[%clk 0:03:13]} 43... Ka1 {[%clk
0:02:49.5]} 44. Qc1+ {[%clk 0:03:11.7]} 44... Ka2 {[%clk 0:02:47.2]} 45. h4
{[%clk 0:03:09.9]} 45... Kb3 {[%clk 0:02:46]} 46. h5 {[%clk 0:03:09.1]} 46... a2
{[%clk 0:02:45.3]} 47. h6 {[%clk 0:03:08.1]} 1-0

[Event "Live Chess"]
[Site "Chess.com"]
[Date "2024.06.01"]
[Round "-"]
[White "Nazar-Makarchuk"]
[Black "Sokolik_UA"]
[Result "1-0"]
[WhiteElo "1589"]
[BlackElo "797"]
[TimeControl "300"]
[EndTime "10:43:24 PDT"]
[Termination "Nazar-Makarchuk won by checkmate"]

1. e4 {[%clk 0:04:57.7]} 1... e6 {[%clk 0:04:59]} 2. d4 {[%clk 0:04:56.5]} 2...
d5 {[%clk 0:04:58.3]} 3. exd5 {[%clk 0:04:55.5]} 3... Qxd5 {[%clk 0:04:56.5]} 4.
Nc3 {[%clk 0:04:53.4]} 4... Qd8 {[%clk 0:04:55.4]} 5. Nf3 {[%clk 0:04:52.9]}
5... Nf6 {[%clk 0:04:54]} 6. Bg5 {[%clk 0:04:51.3]} 6... c6 {[%clk 0:04:46.6]}
7. Ne4 {[%clk 0:04:48.8]} 7... Be7 {[%clk 0:04:44]} 8. Nxf6+ {[%clk 0:04:47.4]}
8... Bxf6 {[%clk 0:04:43.2]} 9. Bxf6 {[%clk 0:04:46.7]} 9... Qxf6 {[%clk
0:04:42.7]} 10. c3 {[%clk 0:04:39.4]} 10... Bd7 {[%clk 0:04:36.3]} 11. Be2
{[%clk 0:04:37.9]} 11... c5 {[%clk 0:04:35.3]} 12. dxc5 {[%clk 0:04:35.6]} 12...
Bc6 {[%clk 0:04:30.7]} 13. O-O {[%clk 0:04:35]} 13... O-O {[%clk 0:04:29.6]} 14.
Qd4 {[%clk 0:04:33.9]} 14... Bd5 {[%clk 0:04:24.3]} 15. Qxf6 {[%clk 0:04:32.6]}
15... gxf6 {[%clk 0:04:22.9]} 16. b3 {[%clk 0:04:25.1]} 16... Nc6 {[%clk
0:04:22.3]} 17. c4 {[%clk 0:04:23.7]} 17... Be4 {[%clk 0:04:20.7]} 18. Rfe1
{[%clk 0:04:21.1]} 18... f5 {[%clk 0:04:19.1]} 19. Nd2 {[%clk 0:04:18]} 19...
Nd4 {[%clk 0:04:11.7]} 20. Nxe4 {[%clk 0:04:16.8]} 20... Nc2 {[%clk 0:04:09.2]}
21. Rac1 {[%clk 0:04:13.8]} 21... Nxe1 {[%clk 0:04:08.2]} 22. Nf6+ {[%clk
0:04:09.5]} 22... Kg7 {[%clk 0:04:04.9]} 23. Nh5+ {[%clk 0:03:58.6]} 23... Kh6
{[%clk 0:04:03]} 24. Rxe1 {[%clk 0:03:58]} 24... Rg8 {[%clk 0:03:59.5]} 25. Nf6
{[%clk 0:03:51.6]} 25... Rg6 {[%clk 0:03:55.8]} 26. Nh5 {[%clk 0:03:37.2]} 26...
Rag8 {[%clk 0:03:52.5]} 27. g3 {[%clk 0:03:25.3]} 27... e5 {[%clk 0:03:50.3]}
28. f4 {[%clk 0:03:12]} 28... exf4 {[%clk 0:03:48.7]} 29. Nxf4 {[%clk
0:03:10.3]} 29... Rc6 {[%clk 0:03:38.2]} 30. Nd3 {[%clk 0:03:04.2]} 30... Rf6
{[%clk 0:03:30.2]} 31. Rf1 {[%clk 0:03:00.3]} 31... Kg6 {[%clk 0:03:25.5]} 32.
Nf4+ {[%clk 0:02:54.1]} 32... Kg5 {[%clk 0:03:23.7]} 33. Nd5 {[%clk 0:02:42.7]}
33... Rc6 {[%clk 0:03:20.9]} 34. Ne7 {[%clk 0:02:40.4]} 34... Rgc8 {[%clk
0:03:16.2]} 35. Nxc6 {[%clk 0:02:39]} 35... Rxc6 {[%clk 0:03:15.5]} 36. Bd3
{[%clk 0:02:37.7]} 36... Rxc5 {[%clk 0:03:14.1]} 37. Rxf5+ {[%clk 0:02:34]}
37... Rxf5 {[%clk 0:03:13.2]} 38. Bxf5 {[%clk 0:02:33.6]} 38... Kxf5 {[%clk
0:03:12.8]} 39. Kf2 {[%clk 0:02:33.3]} 39... Ke5 {[%clk 0:03:09.7]} 40. Ke3
{[%clk 0:02:30.9]} 40... Kd6 {[%clk 0:03:08.6]} 41. Ke4 {[%clk 0:02:29.9]} 41...
a6 {[%clk 0:03:06.9]} 42. Kf5 {[%clk 0:02:29]} 42... Ke7 {[%clk 0:03:05.9]} 43.
b4 {[%clk 0:02:27.1]} 43... Kd6 {[%clk 0:03:04.1]} 44. a4 {[%clk 0:02:24.4]}
44... b6 {[%clk 0:03:01.2]} 45. Kf6 {[%clk 0:02:22.9]} 45... b5 {[%clk
0:02:57.7]} 46. cxb5 {[%clk 0:02:21.5]} 46... axb5 {[%clk 0:02:56.9]} 47. axb5
{[%clk 0:02:18.5]} 47... Kc7 {[%clk 0:02:55.1]} 48. Kxf7 {[%clk 0:02:17.9]}
48... Kb6 {[%clk 0:02:54.7]} 49. Kg7 {[%clk 0:02:17.5]} 49... Kxb5 {[%clk
0:02:51.6]} 50. Kxh7 {[%clk 0:02:17.2]} 50... Kxb4 {[%clk 0:02:51.2]} 51. g4
{[%clk 0:02:16.8]} 51... Kc5 {[%clk 0:02:50.6]} 52. g5 {[%clk 0:02:16.2]} 52...
Kd6 {[%clk 0:02:50.3]} 53. g6 {[%clk 0:02:15.9]} 53... Ke7 {[%clk 0:02:49.9]}
54. g7 {[%clk 0:02:15.6]} 54... Kf7 {[%clk 0:02:48.9]} 55. g8=Q+ {[%clk
0:02:14.9]} 55... Kf6 {[%clk 0:02:47.7]} 56. Qe8 {[%clk 0:02:13.7]} 56... Kg5
{[%clk 0:02:46.8]} 57. Qf8 {[%clk 0:02:08.8]} 57... Kg4 {[%clk 0:02:45.5]} 58.
Kg8 {[%clk 0:02:06.5]} 58... Kh3 {[%clk 0:02:44.4]} 59. Qg7 {[%clk 0:02:04.6]}
59... Kh4 {[%clk 0:02:42.6]} 60. Kf7 {[%clk 0:02:04.1]} 60... Kh3 {[%clk
0:02:41.8]} 61. Kf6 {[%clk 0:02:03.7]} 61... Kh4 {[%clk 0:02:41.2]} 62. Kf5
{[%clk 0:02:03.3]} 62... Kh5 {[%clk 0:02:40.6]} 63. Qg5# {[%clk 0:02:02.5]} 1-0

[Event "Live Chess"]
[Site "Chess.com"]
[Date "2024.06.01"]
[Round "-"]
[White "Ferrarifan27"]
[Black "CheckThis4"]
[Result "1/2-1/2"]
[WhiteElo "2099"]
[BlackElo "2686"]
[TimeControl "300"]
[EndTime "10:43:30 PDT"]
[Termination "Game drawn by repetition"]

1. e4 {[%clk 0:04:57.6]} 1... c5 {[%clk 0:04:55]} 2. Nf3 {[%clk 0:04:55.2]} 2...
d6 {[%clk 0:04:45.8]} 3. d4 {[%clk 0:04:51.8]} 3... cxd4 {[%clk 0:04:44.4]} 4.
Nxd4 {[%clk 0:04:51.3]} 4... Nf6 {[%clk 0:04:43.8]} 5. Nc3 {[%clk 0:04:47.3]}
5... a6 {[%clk 0:04:42.6]} 6. Bg5 {[%clk 0:04:38]} 6... e5 {[%clk 0:04:13.1]} 7.
Nb3 {[%clk 0:04:25.2]} 7... Be7 {[%clk 0:04:08.1]} 8. Be2 {[%clk 0:04:17.9]}
8... O-O {[%clk 0:04:05.7]} 9. O-O {[%clk 0:04:15.8]} 9... Nc6 {[%clk
0:04:03.6]} 10. Qd2 {[%clk 0:04:11.1]} 10... Be6 {[%clk 0:03:55.3]} 11. Rad1
{[%clk 0:04:07.4]} 11... Rc8 {[%clk 0:03:48.6]} 12. Bxf6 {[%clk 0:04:05.4]}
12... Bxf6 {[%clk 0:03:36]} 13. Qxd6 {[%clk 0:04:00.5]} 13... Qxd6 {[%clk
0:03:32.4]} 14. Rxd6 {[%clk 0:04:00.4]} 14... Nd4 {[%clk 0:03:31.5]} 15. Nxd4
{[%clk 0:03:56.3]} 15... exd4 {[%clk 0:03:30.2]} 16. Nd5 {[%clk 0:03:55.2]}
16... Bxd5 {[%clk 0:03:22.2]} 17. Rxd5 {[%clk 0:03:52.5]} 17... Rxc2 {[%clk
0:03:20.6]} 18. Bf3 {[%clk 0:03:47]} 18... Rxb2 {[%clk 0:03:12.2]} 19. e5 {[%clk
0:03:46]} 19... Bd8 {[%clk 0:02:58.1]} 20. Rxd4 {[%clk 0:03:44.2]} 20... Rxa2
{[%clk 0:02:43.3]} 21. Bxb7 {[%clk 0:03:40.1]} 21... a5 {[%clk 0:02:35.3]} 22.
Rfd1 {[%clk 0:03:33.1]} 22... Bb6 {[%clk 0:02:31.2]} 23. R4d2 {[%clk 0:03:32.1]}
23... Rxd2 {[%clk 0:02:21.9]} 24. Rxd2 {[%clk 0:03:32]} 24... g5 {[%clk
0:02:08.9]} 25. Bd5 {[%clk 0:03:25.9]} 25... Re8 {[%clk 0:02:04.6]} 26. Re2
{[%clk 0:03:23.3]} 26... Kg7 {[%clk 0:01:58]} 27. e6 {[%clk 0:03:18.9]} 27...
fxe6 {[%clk 0:01:41.6]} 28. Rxe6 {[%clk 0:03:17.2]} 28... Rxe6 {[%clk
0:01:31.1]} 29. Bxe6 {[%clk 0:03:17.1]} 29... Kf6 {[%clk 0:01:30.4]} 30. Ba2
{[%clk 0:03:15.9]} 30... Ke5 {[%clk 0:01:28.8]} 31. Kf1 {[%clk 0:03:14.8]} 31...
Kd4 {[%clk 0:01:28.3]} 32. Ke2 {[%clk 0:03:13.8]} 32... Kc3 {[%clk 0:01:27.8]}
33. g3 {[%clk 0:02:56.9]} 33... a4 {[%clk 0:01:13.7]} 34. h4 {[%clk 0:02:54.8]}
34... g4 {[%clk 0:01:07.4]} 35. f3 {[%clk 0:02:47.8]} 35... h5 {[%clk 0:01:05]}
36. fxg4 {[%clk 0:02:32.6]} 36... hxg4 {[%clk 0:01:04.9]} 37. h5 {[%clk
0:02:27.9]} 37... Kd4 {[%clk 0:00:43.5]} 38. h6 {[%clk 0:02:19.6]} 38... Bc7
{[%clk 0:00:42.6]} 39. h7 {[%clk 0:02:18]} 39... Be5 {[%clk 0:00:42]} 40. Kd2
{[%clk 0:02:07.6]} 40... Ke4 {[%clk 0:00:37.2]} 41. Ke2 {[%clk 0:02:03.5]} 41...
a3 {[%clk 0:00:35.5]} 42. Bg8 {[%clk 0:01:52.7]} 42... Kf5 {[%clk 0:00:31.5]}
43. Ke3 {[%clk 0:01:47.9]} 43... Bh8 {[%clk 0:00:17.6]} 44. Ba2 {[%clk 0:01:42]}
44... Be5 {[%clk 0:00:16.4]} 45. Bg8 {[%clk 0:01:39.4]} 45... Bh8 {[%clk
0:00:15.4]} 46. Ba2 {[%clk 0:01:38.2]} 46... Be5 {[%clk 0:00:14.3]} 47. Bg8
{[%clk 0:01:37.3]} 1/2-1/2

[Event "Live Chess"]
[Site "Chess.com"]
[Date "2024.06.01"]
[Round "-"]
[White "Brooms1989"]
[Black "matt1979"]
[Result "0-1"]
[WhiteElo "1058"]
[BlackElo "1363"]
[TimeControl "300"]
[EndTime "10:43:43 PDT"]
[Termination "matt1979 won by resignation"]

1. e4 {[%clk 0:04:53.9]} 1... d6 {[%clk 0:04:56.4]} 2. d4 {[%clk 0:04:50.8]}
2... Nf6 {[%clk 0:04:53.9]} 3. Nc3 {[%clk 0:04:48.9]} 3... Nbd7 {[%clk
0:04:51.3]} 4. Nf3 {[%clk 0:04:46]} 4... e5 {[%clk 0:04:40.3]} 5. dxe5 {[%clk
0:04:31.2]} 5... dxe5 {[%clk 0:04:37.1]} 6. Bg5 {[%clk 0:04:27.8]} 6... Bb4
{[%clk 0:04:21.4]} 7. Bd3 {[%clk 0:04:12.1]} 7... h6 {[%clk 0:04:19]} 8. Bh4
{[%clk 0:04:06.3]} 8... O-O {[%clk 0:04:12.2]} 9. O-O {[%clk 0:04:03.5]} 9...
Bxc3 {[%clk 0:04:07.7]} 10. bxc3 {[%clk 0:04:01.9]} 10... c6 {[%clk 0:03:57.9]}
11. Bg3 {[%clk 0:03:49.3]} 11... Re8 {[%clk 0:03:51]} 12. Nh4 {[%clk 0:03:35.6]}
12... Nc5 {[%clk 0:03:26.5]} 13. Qf3 {[%clk 0:03:15.3]} 13... Bg4 {[%clk
0:03:19.8]} 14. Qe3 {[%clk 0:03:06.7]} 14... Qe7 {[%clk 0:02:55.7]} 15. Nf5
{[%clk 0:02:52.2]} 15... Bxf5 {[%clk 0:02:53.9]} 16. exf5 {[%clk 0:02:52.1]}
16... Nh5 {[%clk 0:02:39.3]} 17. Rae1 {[%clk 0:02:31.9]} 17... Nxg3 {[%clk
0:02:33.7]} 18. fxg3 {[%clk 0:02:31.8]} 18... Rad8 {[%clk 0:02:25.7]} 19. f6
{[%clk 0:02:25.2]} 19... Qd6 {[%clk 0:02:15.9]} 20. fxg7 {[%clk 0:02:18.3]}
20... Kxg7 {[%clk 0:02:14.3]} 21. Qf3 {[%clk 0:02:09.3]} 21... Qd5 {[%clk
0:02:04.2]} 22. Qf6+ {[%clk 0:01:43.4]} 22... Kg8 {[%clk 0:01:56.5]} 23. Qxh6
{[%clk 0:01:38.1]} 23... Nxd3 {[%clk 0:01:47.7]} 24. cxd3 {[%clk 0:01:38]} 24...
Qxd3 {[%clk 0:01:34.8]} 25. Qg5+ {[%clk 0:01:18.9]} 25... Qg6 {[%clk 0:01:31.2]}
26. Qxg6+ {[%clk 0:01:13.2]} 26... fxg6 {[%clk 0:01:29]} 27. Rf6 {[%clk
0:01:07.3]} 27... Kg7 {[%clk 0:01:26.1]} 28. Ref1 {[%clk 0:01:05.6]} 28... Rf8
{[%clk 0:01:24.6]} 29. Rxf8 {[%clk 0:01:02.7]} 29... Rxf8 {[%clk 0:01:23.4]} 30.
Rxf8 {[%clk 0:01:02.6]} 30... Kxf8 {[%clk 0:01:22.6]} 31. Kf2 {[%clk 0:01:02.5]}
31... Ke7 {[%clk 0:01:21.8]} 32. Ke3 {[%clk 0:01:00]} 32... Ke6 {[%clk
0:01:19.6]} 33. Ke4 {[%clk 0:00:58.9]} 33... b5 {[%clk 0:01:15.6]} 34. g4 {[%clk
0:00:56.1]} 34... a5 {[%clk 0:01:08.4]} 35. h4 {[%clk 0:00:51.6]} 35... c5
{[%clk 0:01:06]} 36. h5 {[%clk 0:00:49.2]} 36... b4 {[%clk 0:00:53]} 37. cxb4
{[%clk 0:00:44.1]} 37... cxb4 {[%clk 0:00:44.9]} 38. h6 {[%clk 0:00:43.1]} 38...
Kf6 {[%clk 0:00:42.1]} 39. h7 {[%clk 0:00:41.6]} 39... Kg7 {[%clk 0:00:41.1]}
40. h8=Q+ {[%clk 0:00:37.7]} 40... Kxh8 {[%clk 0:00:40.1]} 41. Kxe5 {[%clk
0:00:37.4]} 41... a4 {[%clk 0:00:37.7]} 42. Kd4 {[%clk 0:00:36]} 42... b3 {[%clk
0:00:33.8]} 43. Kc3 {[%clk 0:00:33.9]} 43... bxa2 {[%clk 0:00:27.1]} 44. Kb2
{[%clk 0:00:32]} 44... a1=Q+ {[%clk 0:00:24.2]} 45. Kxa1 {[%clk 0:00:30.9]}
45... Kg7 {[%clk 0:00:23.7]} 46. Ka2 {[%clk 0:00:30.5]} 46... Kf6 {[%clk
0:00:23]} 47. Ka3 {[%clk 0:00:30.2]} 47... Kg5 {[%clk 0:00:22.4]} 48. Kxa4
{[%clk 0:00:30.1]} 48... Kxg4 {[%clk 0:00:21.6]} 49. Kb4 {[%clk 0:00:28.8]}
49... Kg3 {[%clk 0:00:20.8]} 50. Kc3 {[%clk 0:00:28.5]} 50... Kxg2 {[%clk
0:00:19.8]} 51. Kd2 {[%clk 0:00:28.1]} 51... g5 {[%clk 0:00:19.2]} 52. Ke2
{[%clk 0:00:25.9]} 52... g4 {[%clk 0:00:19.1]} 53. Ke1 {[%clk 0:00:24.3]} 53...
g3 {[%clk 0:00:19]} 54. Ke2 {[%clk 0:00:23.3]} 54... Kh1 {[%clk 0:00:18.9]} 0-1

[Event "Live Chess"]
[Site "Chess.com"]
[Date "2024.06.01"]
[Round "-"]
[White "nigelst"]
[Black "DarranAS"]
[Result "1-0"]
[WhiteElo "1711"]
[BlackElo "1454"]
[TimeControl "300"]
[EndTime "10:43:45 PDT"]
[Termination "nigelst won by resignation"]

1. e4 {[%clk 0:04:57.9]} 1... e5 {[%clk 0:04:57.5]} 2. Nf3 {[%clk 0:04:56.5]}
2... Nc6 {[%clk 0:04:54.6]} 3. Bb5 {[%clk 0:04:54.7]} 3... a6 {[%clk 0:04:51.7]}
4. Bxc6 {[%clk 0:04:52]} 4... dxc6 {[%clk 0:04:50.5]} 5. O-O {[%clk 0:04:51.1]}
5... f6 {[%clk 0:04:42.9]} 6. d4 {[%clk 0:04:44.9]} 6... exd4 {[%clk 0:04:31.6]}
7. Nxd4 {[%clk 0:04:39.8]} 7... Ne7 {[%clk 0:04:25.9]} 8. Nc3 {[%clk 0:04:35.1]}
8... Ng6 {[%clk 0:04:20.1]} 9. Be3 {[%clk 0:04:27.9]} 9... Bd6 {[%clk
0:04:02.6]} 10. Qe2 {[%clk 0:04:21.5]} 10... O-O {[%clk 0:03:58.4]} 11. Rad1
{[%clk 0:04:17.8]} 11... Qe7 {[%clk 0:03:50.9]} 12. f3 {[%clk 0:04:06.5]} 12...
c5 {[%clk 0:03:34.7]} 13. Nd5 {[%clk 0:04:00.1]} 13... Qf7 {[%clk 0:03:25.4]}
14. Nb3 {[%clk 0:03:56.5]} 14... b6 {[%clk 0:03:19.2]} 15. c4 {[%clk 0:03:53.2]}
15... Re8 {[%clk 0:02:59.2]} 16. Qd2 {[%clk 0:03:27.2]} 16... Ne5 {[%clk
0:02:45.4]} 17. Nxb6 {[%clk 0:03:20.8]} 17... Nxc4 {[%clk 0:02:35.9]} 18. Nxc4
{[%clk 0:03:18.4]} 18... Qxc4 {[%clk 0:02:33.9]} 19. Rc1 {[%clk 0:03:09.6]}
19... Qb5 {[%clk 0:02:21]} 20. Nxc5 {[%clk 0:03:02.7]} 20... Rd8 {[%clk
0:02:14.2]} 21. Qc2 {[%clk 0:02:53.8]} 21... a5 {[%clk 0:02:01.2]} 22. a4 {[%clk
0:02:51.2]} 22... Qe8 {[%clk 0:01:57.5]} 23. Rfd1 {[%clk 0:02:42.1]} 23... Qh5
{[%clk 0:01:54]} 24. f4 {[%clk 0:02:31.9]} 24... Bg4 {[%clk 0:01:46.2]} 25. Rd5
{[%clk 0:02:24]} 25... Qf7 {[%clk 0:01:30.7]} 26. h3 {[%clk 0:02:19.8]} 26...
Bxc5 {[%clk 0:01:21.5]} 27. Rxd8+ {[%clk 0:02:04.5]} 27... Rxd8 {[%clk
0:01:19.4]} 28. Qxc5 {[%clk 0:01:57.7]} 28... Be6 {[%clk 0:01:01.1]} 29. Qxc7
{[%clk 0:01:48.8]} 29... Rd3 {[%clk 0:00:50.7]} 30. Qb8+ {[%clk 0:01:42.3]}
30... Qf8 {[%clk 0:00:44.2]} 31. Qxf8+ {[%clk 0:01:37.7]} 31... Kxf8 {[%clk
0:00:42.5]} 32. Bb6 {[%clk 0:01:34.9]} 32... Rb3 {[%clk 0:00:32.6]} 33. Bxa5
{[%clk 0:01:30.9]} 33... Rxb2 {[%clk 0:00:29.4]} 34. Bc3 {[%clk 0:01:28.8]}
34... Rb3 {[%clk 0:00:25.2]} 35. a5 {[%clk 0:01:26.1]} 35... Ke7 {[%clk
0:00:17.6]} 36. a6 {[%clk 0:01:23.5]} 36... Bc8 {[%clk 0:00:14]} 37. a7 {[%clk
0:01:21.6]} 37... Bb7 {[%clk 0:00:12.9]} 38. Bd4 {[%clk 0:01:15.6]} 38... Kd7
{[%clk 0:00:11.4]} 39. Ra1 {[%clk 0:01:13.1]} 39... Bxe4 {[%clk 0:00:08.2]} 40.
a8=Q {[%clk 0:01:10.5]} 40... Rb1+ {[%clk 0:00:07.4]} 41. Rxb1 {[%clk
0:01:08.5]} 41... Bxb1 {[%clk 0:00:06.3]} 42. Qb7+ {[%clk 0:01:06.5]} 1-0

[Event "Live Chess"]
[Site "Chess.com"]
[Date "2024.06.01"]
[Round "-"]
[White "FlyingChessKestrel13"]
[Black "kylet1990"]
[Result "1-0"]
[WhiteElo "2109"]
[BlackElo "724"]
[TimeControl "300"]
[EndTime "10:43:52 PDT"]
[Termination "FlyingChessKestrel13 won by resignation"]

1. e4 {[%clk 0:04:57.7]} 1... e5 {[%clk 0:04:55.5]} 2. Nf3 {[%clk 0:04:56.8]}
2... Nc6 {[%clk 0:04:51.3]} 3. Bb5 {[%clk 0:04:55.7]} 3... Nd4 {[%clk
0:04:48.4]} 4. Nxd4 {[%clk 0:04:53.2]} 4... exd4 {[%clk 0:04:45.9]} 5. Bc4
{[%clk 0:04:52.8]} 5... Bc5 {[%clk 0:04:40.7]} 6. O-O {[%clk 0:04:51.2]} 6...
Ne7 {[%clk 0:04:38]} 7. d3 {[%clk 0:04:49.5]} 7... O-O {[%clk 0:04:32.6]} 8. c3
{[%clk 0:04:48.8]} 8... b6 {[%clk 0:04:29.2]} 9. b4 {[%clk 0:04:44.6]} 9... Bd6
{[%clk 0:04:24.4]} 10. f4 {[%clk 0:04:38]} 10... Nc6 {[%clk 0:04:05.1]} 11. Bd5
{[%clk 0:04:31.4]} 11... Bb7 {[%clk 0:04:00.2]} 12. b5 {[%clk 0:04:26.7]} 12...
Na5 {[%clk 0:03:44.5]} 13. Bxb7 {[%clk 0:04:25.4]} 13... Nxb7 {[%clk 0:03:41.9]}
14. cxd4 {[%clk 0:04:24.7]} 14... Qh4 {[%clk 0:03:34.9]} 15. Qf3 {[%clk
0:04:18.8]} 15... Rfe8 {[%clk 0:03:25.8]} 16. e5 {[%clk 0:04:07.4]} 16... Bb4
{[%clk 0:03:19.7]} 17. Qxb7 {[%clk 0:04:04.9]} 17... Rab8 {[%clk 0:02:58.4]} 18.
Qf3 {[%clk 0:03:57.9]} 18... Re6 {[%clk 0:02:51.2]} 19. d5 {[%clk 0:03:52.5]}
19... Rh6 {[%clk 0:02:44.9]} 20. h3 {[%clk 0:03:46.6]} 20... Bc5+ {[%clk
0:02:32.7]} 21. Be3 {[%clk 0:03:44.9]} 21... Bxe3+ {[%clk 0:02:29.9]} 22. Qxe3
{[%clk 0:03:43.8]} 22... Re8 {[%clk 0:02:26.1]} 23. Nd2 {[%clk 0:03:42.1]} 23...
f6 {[%clk 0:02:15.4]} 24. Nf3 {[%clk 0:03:39.8]} 24... Qh5 {[%clk 0:02:02.8]}
25. Rae1 {[%clk 0:03:33.6]} 25... g6 {[%clk 0:01:50.4]} 26. Qf2 {[%clk 0:03:29]}
26... fxe5 {[%clk 0:01:45.2]} 27. Rxe5 {[%clk 0:03:23]} 27... Rxe5 {[%clk
0:01:43.2]} 28. fxe5 {[%clk 0:03:21.9]} 28... Qf5 {[%clk 0:01:33.2]} 29. Qe3
{[%clk 0:03:13.6]} 29... Qf8 {[%clk 0:01:16.4]} 30. Nd4 {[%clk 0:03:08.2]} 30...
Qg7 {[%clk 0:01:08.2]} 31. e6 {[%clk 0:03:05.1]} 31... dxe6 {[%clk 0:01:04.5]}
32. dxe6 {[%clk 0:03:04.2]} 32... Rxh3 {[%clk 0:00:56.1]} 1-0

[Event "Live Chess"]
[Site "Chess.com"]
[Date "2024.06.01"]
[Round "-"]
[White "viktorskliarov"]
[Black "Duke_of_Bebington"]
[Result "1-0"]
[WhiteElo "2643"]
[BlackElo "1630"]
[TimeControl "300"]
[EndTime "10:44:12 PDT"]
[Termination "viktorskliarov won by resignation"]

1. e4 {[%clk 0:04:58.6]} 1... e5 {[%clk 0:04:57.2]} 2. Nc3 {[%clk 0:04:57.5]}
2... Nc6 {[%clk 0:04:53.3]} 3. Bc4 {[%clk 0:04:56.6]} 3... Nf6 {[%clk
0:04:52.2]} 4. d3 {[%clk 0:04:55.9]} 4... Bc5 {[%clk 0:04:48.1]} 5. h3 {[%clk
0:04:54.8]} 5... O-O {[%clk 0:04:47]} 6. a3 {[%clk 0:04:51.8]} 6... h6 {[%clk
0:04:46.2]} 7. Nge2 {[%clk 0:04:51]} 7... d6 {[%clk 0:04:41.3]} 8. Ng3 {[%clk
0:04:50]} 8... Be6 {[%clk 0:04:29.5]} 9. Nd5 {[%clk 0:04:48.7]} 9... Ne7 {[%clk
0:04:21.2]} 10. Nxf6+ {[%clk 0:04:46.4]} 10... gxf6 {[%clk 0:04:20.1]} 11. Bxh6
{[%clk 0:04:45.8]} 11... Bxc4 {[%clk 0:04:18]} 12. Bxf8 {[%clk 0:04:36]} 1-0